bitfinex/quotes_BTCUSD_20220120
["timestamp","ask_amount","ask_price","bid_price","bid_amount"]
[1642663128948,0.27059434,41987.0,41980.0,0.00010314]
[1642663129150,0.27059434,41987.0,41982.0,0.09955]
[1642663129347,0.51059434,41987.0,41982.0,0.09955]
[1642663129747,0.50955695,41987.0,41982.0,0.09955]
[1642663129949,0.51059434,41987.0,41982.0,0.09955]
[1642663130404,0.51059434,41987.0,41982.0,0.06003549]
[1642663130909,0.50955695,41987.0,41982.0,0.06003549]
[1642663131104,0.51059434,41987.0,41982.0,0.09903549]
[1642663132105,0.50955695,41987.0,41982.0,0.09903549]
[1642663132305,0.50955695,41987.0,41982.0,0.06003549]
[1642663132306,0.51059434,41987.0,41982.0,0.06003549]
[1642663133108,0.51059434,41987.0,41982.0,0.10803549]
[1642663133307,0.50955695,41987.0,41982.0,0.10803549]
[1642663133509,0.51059434,41987.0,41982.0,0.10803549]
[1642663133709,1.97657149,41985.0,41982.0,0.10803549]
[1642663133931,0.013323,41984.0,41982.0,0.10803549]
[1642663134148,0.013323,41984.0,41982.0,0.04848549]
[1642663134348,0.013323,41984.0,41982.0,0.00048549]
[1642663135146,0.013323,41984.0,41982.0,0.02948549]
[1642663135350,0.013323,41984.0,41982.0,0.02932341]
[1642663136347,0.013323,41984.0,41982.0,0.00032341]
[1642663137150,0.013323,41984.0,41982.0,0.01832341]
[1642663139202,0.013323,41984.0,41982.0,0.01932341]
[1642663139404,0.31428633,41984.0,41982.0,0.01932341]
[1642663140004,0.013323,41984.0,41982.0,0.01932341]
[1642663140409,0.013323,41984.0,41982.0,0.00048511]
[1642663140806,0.00103737,41985.0,41982.0,0.00048511]
[1642663141208,0.00103737,41985.0,41982.0,0.02248511]
[1642663141646,0.50955695,41987.0,41982.0,0.02248511]
[1642663141845,0.00103737,41986.0,41982.0,0.02248511]
[1642663142444,0.00103737,41986.0,41982.0,0.00048511]
[1642663142851,0.50955695,41987.0,41982.0,0.00048511]
[1642663143052,0.00103738,41986.0,41982.0,0.04448511]
[1642663143445,2.33364389,41984.0,41982.0,0.04448511]
[1642663143646,0.013323,41983.0,41982.0,0.04448511]
[1642663143847,0.00103738,41986.0,41982.0,0.04448511]
[1642663144047,0.50955695,41987.0,41982.0,0.04455387]
[1642663144248,0.00103736,41985.0,41982.0,0.04455387]
[1642663144447,0.00103736,41985.0,41982.0,0.00055387]
[1642663145296,0.55955695,41987.0,41982.0,0.02055387]
[1642663145496,0.01436037,41986.0,41984.0,0.00048474]
[1642663146494,0.013323,41986.0,41984.0,0.00048474]
[1642663147096,0.013323,41986.0,41984.0,0.00948474]
[1642663147097,0.027323,41986.0,41984.0,0.00948474]
[1642663147498,0.086891,41986.0,41984.0,0.00948474]
[1642663147695,0.32440054,41985.0,41984.0,0.00948474]
[1642663147899,0.33772354,41985.0,41984.0,0.00948474]
[1642663148096,0.38772354,41985.0,41984.0,0.00948474]
[1642663148301,0.38772354,41985.0,41984.0,0.00048474]
[1642663148497,0.43772354,41985.0,41984.0,0.00048474]
[1642663148699,0.63299267,41985.0,41984.0,0.00048474]
[1642663148897,1.08299267,41985.0,41984.0,0.00048474]
[1642663149144,1.09599267,41985.0,41984.0,0.00048474]
[1642663150349,0.63299267,41985.0,41982.0,0.00039192]
[1642663150543,0.013323,41984.0,41982.0,0.00039192]
[1642663150744,0.10859213,41984.0,41982.0,0.00039192]
[1642663150951,0.6135214,41983.0,41982.0,0.00039192]
[1642663151144,0.87211353,41983.0,41982.0,0.00039192]
[1642663151743,0.57211353,41983.0,41982.0,0.00039192]
[1642663152344,0.63623353,41983.0,41982.0,0.00039192]
[1642663153197,0.64823353,41983.0,41982.0,0.00039192]
[1642663154598,0.63623353,41983.0,41982.0,0.00039192]
[1642663155199,0.64823353,41983.0,41982.0,0.00039192]
[1642663155899,0.64823353,41983.0,41982.0,0.00031561]
[1642663156298,0.63623353,41983.0,41982.0,0.00031561]
[1642663157150,0.64823353,41983.0,41982.0,0.00031561]
[1642663158950,0.63623353,41983.0,41982.0,0.00031561]
[1642663159150,0.64723353,41983.0,41982.0,0.00031561]
[1642663160397,0.64723353,41983.0,41974.0,0.0598934]
[1642663160398,0.63744329,41983.0,41974.0,0.0598934]
[1642663160597,0.059577,41980.0,41974.0,0.0003224]
[1642663160800,0.31376375,41979.0,41975.0,0.00012033]
[1642663161000,0.45903288,41979.0,41975.0,0.00012033]
[1642663161302,0.2160886,41978.0,41975.0,0.00012033]
[1642663161495,1.9466852,41976.0,41975.0,0.00012033]
[1642663161697,0.013323,41976.0,41975.0,0.00012033]
[1642663161897,0.2160886,41978.0,41975.0,0.00012033]
[1642663162295,0.21712587,41978.0,41975.0,0.00012033]
[1642663163098,0.21712587,41978.0,41975.0,0.05969033]
[1642663163297,0.29991548,41977.0,41975.0,0.11669033]
[1642663163500,0.29991548,41977.0,41976.0,0.00010314]
[1642663163905,0.39781548,41977.0,41976.0,0.00010314]
[1642663164150,0.49781548,41977.0,41976.0,0.00010314]
[1642663164750,0.54781548,41977.0,41976.0,0.00010314]
[1642663165151,0.55381548,41977.0,41976.0,0.03910314]
[1642663165351,0.64896106,41977.0,41976.0,0.03910314]
[1642663165553,1.23417406,41977.0,41976.0,0.00032391]
[1642663165758,1.35163968,41977.0,41976.0,0.00032391]
[1642663165954,0.85959627,41976.0,41973.0,0.00121254]
[1642663166156,0.763323,41974.0,41973.0,0.00121254]
[1642663166360,1.28733488,41974.0,41973.0,0.00121254]
[1642663166560,1.74802171,41974.0,41973.0,0.00121254]
[1642663167054,1.74802171,41974.0,41972.0,0.0011]
[1642663167254,0.36411896,41973.0,41972.0,0.0011]
[1642663167453,0.41201896,41973.0,41972.0,0.0011]
[1642663167653,0.51201896,41973.0,41972.0,0.00116876]
[1642663169301,0.52501896,41973.0,41972.0,0.00116876]
[1642663170305,0.86021056,41973.0,41972.0,0.00116876]
[1642663170603,0.84721056,41973.0,41972.0,0.00116876]
[1642663170802,0.75201896,41973.0,41972.0,0.00116876]
[1642663171201,0.76401896,41973.0,41972.0,0.00116876]
[1642663171659,1.01580313,41973.0,41972.0,0.00116876]
[1642663172452,1.00380313,41973.0,41972.0,0.00116876]
[1642663173253,1.01680313,41973.0,41972.0,0.00116876]
[1642663174555,1.00380313,41973.0,41972.0,0.00116876]
[1642663175157,1.01580313,41973.0,41972.0,0.00116876]
[1642663175592,0.76401896,41973.0,41972.0,0.00116876]
[1642663175792,0.313223,41973.0,41972.0,0.00116876]
[1642663176011,0.413223,41973.0,41972.0,0.00116876]
[1642663176193,0.313223,41973.0,41972.0,0.00116876]
[1642663176393,0.413223,41973.0,41972.0,0.00116876]
[1642663176799,0.313223,41973.0,41972.0,0.00116876]
[1642663176995,0.24,41973.0,41972.0,0.00116876]
[1642663177192,0.274,41973.0,41972.0,0.00116876]
[1642663179145,0.282,41973.0,41972.0,0.00116876]
[1642663179349,0.248,41973.0,41972.0,0.00116876]
[1642663180545,0.24,41973.0,41972.0,0.00116876]
[1642663181146,0.25,41973.0,41972.0,0.00116876]
[1642663182548,0.24,41973.0,41972.0,0.00116876]
[1642663183197,0.25,41973.0,41972.0,0.00116876]
[1642663184608,0.24,41973.0,41972.0,0.00116876]
[1642663185301,0.24437,41973.0,41972.0,0.00116876]
[1642663186545,0.23937,41973.0,41972.0,0.00116876]
[1642663187252,0.24437,41973.0,41972.0,0.00116876]
[1642663187446,0.54700514,41973.0,41972.0,0.00116876]
[1642663187646,0.56032814,41973.0,41972.0,0.00116876]
[1642663188248,0.257693,41973.0,41972.0,0.00116876]
[1642663188452,0.252693,41973.0,41972.0,0.00116876]
[1642663188649,0.23937,41973.0,41972.0,0.00116876]
[1642663189249,0.25537,41973.0,41972.0,0.00116876]
[1642663189453,0.25537,41973.0,41972.0,0.15240001]
[1642663189656,0.25537,41973.0,41972.0,0.38641501]
[1642663190614,0.23937,41973.0,41972.0,0.00116876]
[1642663190816,0.41413345,41973.0,41972.0,0.00116876]
[1642663191221,0.41813345,41973.0,41972.0,0.00116876]
[1642663192420,0.41413345,41973.0,41972.0,0.00116876]
[1642663193117,0.23937,41973.0,41972.0,0.00116876]
[1642663197452,0.52001894,41973.0,41972.0,0.00116876]
[1642663199302,0.52601894,41973.0,41972.0,0.00116876]
[1642663200500,0.23937,41973.0,41972.0,0.00116876]
[1642663201301,0.24337,41973.0,41972.0,0.00116876]
[1642663201946,0.20371803,41974.0,41973.0,0.16908229]
[1642663202854,0.0479,41976.0,41973.0,0.16908229]
[1642663203048,0.00109504,41977.0,41973.0,0.16908229]
[1642663203248,0.009,41974.0,41973.0,0.60667038]
[1642663204448,0.00109504,41977.0,41973.0,0.521293]
[1642663205302,0.028,41977.0,41973.0,0.521293]
[1642663205507,0.02909506,41977.0,41973.0,0.52233609]
[1642663206502,0.26593746,41979.0,41973.0,0.521293]
[1642663206709,0.00109506,41977.0,41973.0,0.52233609]
[1642663207705,0.27271179,41979.0,41973.0,0.521293]
[1642663207911,0.00109506,41977.0,41973.0,0.52233609]
[1642663208509,2.32818377,41975.0,41973.0,0.52233609]
[1642663208806,0.00109506,41977.0,41973.0,0.52233609]
[1642663209060,0.00109505,41977.0,41973.0,0.521293]
[1642663209259,0.03,41975.0,41973.0,0.521293]
[1642663209659,0.03,41975.0,41973.0,0.08370491]
[1642663210465,0.00109505,41977.0,41973.0,0.08370491]
[1642663211264,0.32600945,41976.0,41973.0,0.08370491]
[1642663211460,0.32600945,41976.0,41973.0,0.08474801]
[1642663211860,0.05958,41975.0,41973.0,0.08474801]
[1642663212264,0.10958,41975.0,41973.0,0.08474801]
[1642663212460,0.10958,41975.0,41973.0,0.08370491]
[1642663213307,0.11558,41975.0,41973.0,0.08370491]
[1642663213504,0.11477293,41975.0,41973.0,0.08370491]
[1642663214501,0.10877293,41975.0,41973.0,0.08370491]
[1642663215102,0.09284897,41974.0,41973.0,0.08370491]
[1642663215304,0.21008897,41974.0,41973.0,0.08370491]
[1642663215504,0.11724,41974.0,41973.0,0.08370491]
[1642663215913,0.20993279,41974.0,41973.0,0.08370491]
[1642663217352,0.22193279,41974.0,41973.0,0.08370491]
[1642663217952,0.15259279,41974.0,41973.0,0.08370491]
[1642663218558,0.14059279,41974.0,41973.0,0.08370491]
[1642663219356,0.15659279,41974.0,41973.0,0.08370491]
[1642663219656,0.0639,41974.0,41973.0,0.08370491]
[1642663220603,0.0479,41974.0,41973.0,0.08370491]
[1642663221401,0.0829,41974.0,41973.0,0.08370491]
[1642663222517,0.0479,41974.0,41973.0,0.08370491]
[1642663223402,0.0809,41974.0,41973.0,0.08370491]
[1642663224652,0.0479,41974.0,41973.0,0.08370491]
[1642663225353,0.0839,41974.0,41973.0,0.08370491]
[1642663226152,0.0789,41974.0,41973.0,0.08370491]
[1642663226552,0.0429,41974.0,41973.0,0.08370491]
[1642663227454,0.0889,41974.0,41973.0,0.08370491]
[1642663228409,0.046,41974.0,41973.0,0.08370491]
[1642663229212,0.28109504,41977.0,41973.0,0.08370491]
[1642663229410,0.046,41974.0,41973.0,0.08370491]
[1642663230611,0.28,41977.0,41973.0,0.08370491]
[1642663230813,0.33109504,41977.0,41973.0,0.08370491]
[1642663231414,0.37709504,41977.0,41973.0,0.08370491]
[1642663231658,0.376,41977.0,41973.0,0.08370491]
[1642663231851,0.37709506,41977.0,41973.0,0.084748]
[1642663232056,0.37709506,41977.0,41974.0,0.27345366]
[1642663232057,0.27709506,41977.0,41974.0,0.27345366]
[1642663232258,0.27709506,41977.0,41974.0,0.59148284]
[1642663232453,0.27709506,41977.0,41975.0,0.384015]
[1642663232653,0.23109506,41977.0,41976.0,1.17064348]
[1642663232851,0.23109506,41977.0,41976.0,1.55465848]
[1642663232852,0.23,41977.0,41976.0,1.55465848]
[1642663233052,0.23,41977.0,41976.0,1.83629809]
[1642663233254,0.23,41977.0,41976.0,1.83753619]
[1642663233458,0.23,41977.0,41976.0,1.84853619]
[1642663233656,0.23,41977.0,41976.0,1.89643619]
[1642663234157,0.23,41977.0,41976.0,1.89893558]
[1642663234554,0.23,41977.0,41976.0,1.71110427]
[1642663235404,0.23,41977.0,41976.0,1.72804081]
[1642663236709,0.23,41977.0,41976.0,1.71204081]
[1642663237307,0.23,41977.0,41976.0,0.87904081]
[1642663238705,0.23,41977.0,41976.0,0.86204081]
[1642663239178,0.23,41977.0,41976.0,0.38745093]
[1642663239387,0.42664365,41977.0,41976.0,0.41045093]
[1642663239578,0.42664365,41977.0,41976.0,0.02643593]
[1642663239781,0.42664365,41977.0,41973.0,0.08474799]
[1642663239782,0.40677651,41976.0,41973.0,0.08474799]
[1642663239983,0.00128444,41974.0,41973.0,0.08474799]
[1642663240180,0.00128444,41974.0,41973.0,0.08370491]
[1642663240181,0.06250744,41974.0,41973.0,0.08370491]
[1642663240976,0.04918444,41974.0,41973.0,0.08370491]
[1642663241378,0.05918444,41974.0,41973.0,0.08370491]
[1642663241775,0.0579,41974.0,41973.0,0.08370491]
[1642663242578,0.0479,41974.0,41973.0,0.08370491]
[1642663243402,0.0589,41974.0,41973.0,0.08370491]
[1642663243804,0.37883815,41974.0,41973.0,0.08370491]
[1642663244407,0.43842315,41974.0,41973.0,0.08370491]
[1642663244613,0.75735176,41974.0,41973.0,0.08370491]
[1642663244908,0.50735176,41974.0,41973.0,0.08370491]
[1642663245507,0.52935176,41974.0,41973.0,0.08370491]
[1642663245709,0.63544892,41974.0,41973.0,0.08370491]
[1642663246657,0.56344892,41974.0,41973.0,0.08370491]
[1642663247456,0.58544892,41974.0,41973.0,0.08370491]
[1642663247857,0.47935176,41974.0,41973.0,0.08370491]
[1642663248157,0.08983815,41974.0,41973.0,0.08370491]
[1642663248560,0.06783815,41974.0,41973.0,0.08370491]
[1642663248758,0.11783815,41974.0,41973.0,0.08370491]
[1642663249358,0.13283815,41974.0,41973.0,0.08370491]
[1642663250406,0.08493815,41974.0,41973.0,0.08370491]
[1642663250610,0.06993815,41974.0,41973.0,0.08370491]
[1642663250907,0.00661515,41974.0,41973.0,0.08370491]
[1642663251506,0.35080933,41974.0,41973.0,0.08370491]
[1642663251908,0.36413233,41974.0,41973.0,0.08370491]
[1642663252708,0.36503233,41974.0,41973.0,0.08370491]
[1642663252911,0.47041234,41974.0,41973.0,0.08370491]
[1642663253311,0.52999934,41974.0,41973.0,0.08370491]
[1642663253610,0.54699934,41974.0,41973.0,0.08370491]
[1642663253809,0.59699934,41974.0,41973.0,0.08370491]
[1642663254657,0.57999934,41974.0,41973.0,0.08370491]
[1642663255459,0.60799934,41974.0,41973.0,0.08370491]
[1642663256761,0.57999934,41974.0,41973.0,0.08370491]
[1642663257159,0.28280516,41974.0,41973.0,0.08370491]
[1642663257364,0.30180516,41974.0,41973.0,0.08370491]
[1642663258012,0.60334695,41974.0,41973.0,0.08370491]
[1642663258216,0.54375995,41974.0,41973.0,0.08370491]
[1642663258611,0.52475995,41974.0,41973.0,0.08370491]
[1642663259415,0.60134495,41974.0,41973.0,0.08370491]
[1642663260020,0.65134495,41974.0,41973.0,0.08370491]
[1642663260216,0.75347495,41974.0,41973.0,0.08370491]
[1642663260416,0.88744495,41974.0,41973.0,0.08370491]
[1642663260614,0.87044495,41974.0,41973.0,0.08370491]
[1642663261212,1.17044495,41974.0,41973.0,0.08364353]
[1642663261415,0.88244495,41974.0,41973.0,0.08364353]
[1642663261661,1.01442244,41974.0,41973.0,0.08364353]
[1642663261863,0.88244495,41974.0,41973.0,0.08364353]
[1642663262568,0.58090316,41974.0,41973.0,0.08364353]
[1642663262760,0.76259968,41974.0,41973.0,0.08364353]
[1642663263361,0.75059968,41974.0,41973.0,0.08364353]
[1642663263563,0.76259968,41974.0,41973.0,0.08364353]
[1642663264761,0.75059968,41974.0,41973.0,0.08364353]
[1642663265518,0.76259968,41974.0,41973.0,0.08364353]
[1642663266820,0.75059968,41974.0,41973.0,0.08364353]
[1642663267220,0.69101468,41974.0,41973.0,0.08364353]
[1642663267421,0.70301468,41974.0,41973.0,0.08364353]
[1642663268222,0.38521816,41974.0,41973.0,0.08364353]
[1642663268823,0.37321816,41974.0,41973.0,0.08364353]
[1642663269461,0.38721816,41974.0,41973.0,0.08364353]
[1642663269859,0.28721816,41974.0,41973.0,0.08364353]
[1642663270060,0.38721816,41974.0,41973.0,0.08364353]
[1642663270862,0.37321816,41974.0,41973.0,0.08364353]
[1642663271059,0.27321816,41974.0,41973.0,0.08364353]
[1642663271460,0.28721816,41974.0,41973.0,0.08364353]
[1642663272461,0.23721816,41974.0,41973.0,0.08364353]
[1642663272661,0.17321816,41974.0,41973.0,0.08364353]
[1642663273409,0.18721816,41974.0,41973.0,0.08364353]
[1642663274809,0.17321816,41974.0,41973.0,0.08364353]
[1642663275616,0.18321816,41974.0,41973.0,0.08364353]
[1642663276111,0.13531816,41974.0,41973.0,0.08364353]
[1642663276754,0.12531816,41974.0,41973.0,0.08364353]
[1642663277555,0.03293815,41974.0,41973.0,0.08364353]
[1642663277755,0.01961515,41974.0,41973.0,0.08364353]
[1642663278361,0.12476499,41974.0,41973.0,0.08364353]
[1642663278755,0.11176499,41974.0,41973.0,0.08364353]
[1642663278956,0.00661515,41974.0,41973.0,0.08364353]
[1642663279459,0.16676727,41974.0,41973.0,0.08364353]
[1642663279656,0.06161515,41974.0,41973.0,0.08364353]
[1642663280057,0.16676727,41974.0,41973.0,0.08364353]
[1642663280309,0.06161515,41974.0,41973.0,0.08364353]
[1642663280512,0.07493815,41974.0,41973.0,0.08364353]
[1642663280711,0.12509027,41974.0,41973.0,0.08364353]
[1642663281310,0.37509027,41974.0,41973.0,0.08364353]
[1642663281709,0.39309027,41974.0,41973.0,0.08364353]
[1642663282110,0.14309027,41974.0,41973.0,0.08364353]
[1642663282312,0.14301574,41974.0,41973.0,0.08364353]
[1642663282712,0.17291574,41974.0,41973.0,0.08364353]
[1642663283612,0.19191574,41974.0,41973.0,0.08364353]
[1642663283812,0.24191574,41974.0,41973.0,0.08364353]
[1642663284060,0.23537512,41974.0,41973.0,0.08364353]
[1642663284961,0.21637512,41974.0,41973.0,0.08364353]
[1642663285161,0.20305212,41974.0,41973.0,0.08364353]
[1642663285560,0.22105212,41974.0,41973.0,0.08364353]
[1642663286762,0.20305212,41974.0,41973.0,0.08364353]
[1642663287461,0.1149,41974.0,41973.0,0.08364353]
[1642663288111,0.22003117,41974.0,41973.0,0.08364353]
[1642663288912,0.20303117,41974.0,41973.0,0.08364353]
[1642663289614,0.22103117,41974.0,41973.0,0.08364353]
[1642663290616,0.23435417,41974.0,41973.0,0.08364353]
[1642663291222,0.22103117,41974.0,41973.0,0.08364353]
[1642663291419,0.20303117,41974.0,41973.0,0.08364353]
[1642663291662,0.22003117,41974.0,41973.0,0.08364353]
[1642663292457,0.23335417,41974.0,41973.0,0.08364353]
[1642663293257,0.18545417,41974.0,41973.0,0.08364353]
[1642663293459,0.15513117,41974.0,41973.0,0.08364353]
[1642663293668,0.17113117,41974.0,41973.0,0.08364353]
[1642663294860,0.15513117,41974.0,41973.0,0.08364353]
[1642663295514,0.18345417,41974.0,41973.0,0.08364353]
[1642663296014,0.48450818,41974.0,41973.0,0.08364353]
[1642663296615,0.18345417,41974.0,41973.0,0.08364353]
[1642663296815,0.16845417,41974.0,41973.0,0.08364353]
[1642663297615,0.18545417,41974.0,41973.0,0.08364353]
[1642663298821,0.16845417,41974.0,41973.0,0.08364353]
[1642663299665,0.18545417,41974.0,41973.0,0.08364353]
[1642663301371,0.16845417,41974.0,41973.0,0.08364353]
[1642663301566,0.18545417,41974.0,41973.0,0.08364353]
[1642663302368,0.13545417,41974.0,41973.0,0.08364353]
[1642663302568,0.23545417,41974.0,41973.0,0.08364353]
[1642663302807,0.21845417,41974.0,41973.0,0.08364353]
[1642663303507,0.23645417,41974.0,41973.0,0.08364353]
[1642663305110,0.21845417,41974.0,41973.0,0.08364353]
[1642663305511,0.23445417,41974.0,41973.0,0.08364353]
[1642663306012,0.18445417,41974.0,41973.0,0.08364353]
[1642663306858,0.16845417,41974.0,41973.0,0.08364353]
[1642663307058,0.16845417,41974.0,41973.0,0.08357895]
[1642663307358,0.1660692,41974.0,41973.0,0.08357895]
[1642663307558,0.1820692,41974.0,41973.0,0.08357895]
[1642663307760,0.2320692,41974.0,41973.0,0.08357895]
[1642663308965,0.2160692,41974.0,41973.0,0.08357895]
[1642663309560,0.2300692,41974.0,41973.0,0.08357895]
[1642663309964,0.18245417,41974.0,41973.0,0.08357895]
[1642663311011,0.23035417,41974.0,41973.0,0.08357895]
[1642663311413,0.21635417,41974.0,41973.0,0.08357895]
[1642663311615,0.23335417,41974.0,41973.0,0.08357895]
[1642663312815,0.21635417,41974.0,41973.0,0.08357895]
[1642663313617,0.23435417,41974.0,41973.0,0.08357895]
[1642663314264,0.18645417,41974.0,41973.0,0.08357895]
[1642663314657,0.23645417,41974.0,41973.0,0.08357895]
[1642663315257,0.21845417,41974.0,41973.0,0.08357895]
[1642663315656,0.23545417,41974.0,41973.0,0.08357895]
[1642663316964,0.21845417,41974.0,41973.0,0.08357895]
[1642663317561,0.23445417,41974.0,41973.0,0.08357895]
[1642663318420,0.12113117,41974.0,41973.0,0.08357895]
[1642663318612,0.12113117,41974.0,41973.0,0.46883043]
[1642663318613,0.016,41974.0,41973.0,0.46883043]
[1642663318827,0.23109504,41977.0,41973.0,0.46883043]
[1642663319211,0.23109504,41977.0,41974.0,0.27396912]
[1642663319412,0.23,41977.0,41975.0,0.384015]
[1642663319617,0.23109506,41977.0,41975.0,0.384015]
[1642663320212,0.23109506,41977.0,41975.0,0.57567469]
[1642663320617,0.23,41977.0,41976.0,0.80920479]
[1642663320814,0.23,41977.0,41976.0,0.934015]
[1642663321667,0.23,41977.0,41976.0,0.947015]
[1642663321668,0.22990493,41977.0,41976.0,0.947015]
[1642663322965,0.22990493,41977.0,41976.0,0.934015]
[1642663323665,0.22990493,41977.0,41976.0,0.947015]
[1642663323965,0.22990493,41977.0,41976.0,0.563]
[1642663324565,0.22990493,41977.0,41976.0,0.013]
[1642663324968,0.22490493,41977.0,41974.0,0.27396912]
[1642663325622,0.22490493,41977.0,41974.0,0.29096912]
[1642663325821,0.22490493,41977.0,41975.0,0.384015]
[1642663327622,0.22490493,41977.0,41975.0,0.397015]
[1642663327824,0.22490493,41977.0,41975.0,0.013]
[1642663328026,0.013323,41976.0,41975.0,0.013]
[1642663328626,0.10203051,41976.0,41975.0,0.013]
[1642663328823,0.10203051,41976.0,41973.0,0.08462204]
[1642663329062,0.10203051,41976.0,41973.0,0.08357895]
[1642663329266,0.013323,41976.0,41973.0,0.08462205]
[1642663329663,0.021323,41976.0,41973.0,0.09962205]
[1642663329863,0.0808996,41976.0,41973.0,0.09962205]
[1642663330068,0.4012975,41976.0,41973.0,0.09962205]
[1642663330265,0.4012975,41976.0,41973.0,0.09857895]
[1642663330464,0.08870542,41975.0,41973.0,0.09857895]
[1642663330665,0.316593,41974.0,41973.0,0.09857895]
[1642663330866,0.316593,41974.0,41973.0,0.08357895]
[1642663331166,0.366593,41974.0,41973.0,0.08357895]
[1642663331567,0.431493,41974.0,41973.0,0.08357895]
[1642663331767,0.82019601,41974.0,41973.0,0.08357895]
[1642663332368,0.93937501,41974.0,41973.0,0.08357895]
[1642663333009,0.92237501,41974.0,41973.0,0.08357895]
[1642663333709,0.93437501,41974.0,41973.0,0.08357895]
[1642663333910,0.70959021,41973.0,41971.0,0.02104315]
[1642663334110,0.39941853,41972.0,41971.0,0.02104315]
[1642663334410,0.53812154,41972.0,41971.0,0.0211291]
[1642663335012,0.53812154,41972.0,41971.0,0.02008595]
[1642663335410,0.81880917,41972.0,41971.0,0.02008595]
[1642663335610,0.7218759,41971.0,41969.0,0.00104323]
[1642663335811,0.4052871,41970.0,41969.0,0.00104323]
[1642663336010,0.5052871,41970.0,41969.0,0.00104323]
[1642663336210,0.05959196,41969.0,41968.0,0.001]
[1642663336411,0.41816768,41969.0,41968.0,0.001]
[1642663336667,0.10749196,41969.0,41968.0,0.001]
[1642663337670,0.12149196,41969.0,41968.0,0.001]
[1642663338968,0.10749196,41969.0,41968.0,0.00284602]
[1642663339571,0.12249196,41969.0,41968.0,0.00284602]
[1642663341014,0.10749196,41969.0,41968.0,0.00284602]
[1642663341219,0.0479,41969.0,41968.0,0.00284602]
[1642663341715,0.0629,41969.0,41968.0,0.00284602]
[1642663342818,0.0479,41969.0,41968.0,0.00284602]
[1642663343618,0.2799,41969.0,41968.0,0.00284602]
[1642663344962,0.2679,41969.0,41968.0,0.00284602]
[1642663345762,0.2829,41969.0,41968.0,0.00284602]
[1642663346966,0.2679,41969.0,41968.0,0.00284602]
[1642663347813,0.2829,41969.0,41968.0,0.00284602]
[1642663348918,0.2679,41969.0,41968.0,0.00284602]
[1642663349417,0.56617731,41969.0,41968.0,0.00284602]
[1642663349618,0.69450031,41969.0,41968.0,0.00284602]
[1642663351021,0.67950031,41969.0,41968.0,0.00284602]
[1642663351217,0.381223,41969.0,41968.0,0.00284602]
[1642663351416,0.281223,41969.0,41968.0,0.00284602]
[1642663351684,0.392223,41969.0,41968.0,0.00284602]
[1642663352071,0.45181126,41969.0,41968.0,0.00284602]
[1642663352472,0.35181126,41969.0,41968.0,0.00284602]
[1642663352871,0.63870263,41969.0,41968.0,0.00284602]
[1642663353676,0.64970263,41969.0,41968.0,0.00284602]
[1642663354875,0.74970263,41969.0,41968.0,0.00284602]
[1642663355516,0.73870263,41969.0,41968.0,0.00284602]
[1642663355711,0.75170263,41969.0,41968.0,0.00284602]
[1642663357216,0.73870263,41969.0,41968.0,0.00284602]
[1642663357816,0.75170263,41969.0,41968.0,0.00284602]
[1642663358016,0.75170263,41969.0,41968.0,0.00277407]
[1642663358821,0.75170263,41969.0,41968.0,0.00369709]
[1642663359067,0.73870263,41969.0,41968.0,0.00369709]
[1642663359665,0.75170263,41969.0,41968.0,0.00369709]
[1642663361070,0.73870263,41969.0,41968.0,0.00369709]
[1642663361770,0.75170263,41969.0,41968.0,0.00369709]
[1642663363035,0.73870263,41969.0,41968.0,0.00369709]
[1642663363235,0.67911437,41969.0,41968.0,0.00369709]
[1642663363636,0.69511437,41969.0,41968.0,0.00369709]
[1642663364239,0.397223,41969.0,41968.0,0.00369709]
[1642663364537,0.59412653,41969.0,41968.0,0.00369709]
[1642663364737,0.397223,41969.0,41968.0,0.00369709]
[1642663364940,0.381223,41969.0,41968.0,0.00369709]
[1642663365738,0.397223,41969.0,41968.0,0.00369709]
[1642663366865,0.381223,41969.0,41968.0,0.00369709]
[1642663367462,0.281223,41969.0,41968.0,0.00369709]
[1642663367664,0.296223,41969.0,41968.0,0.00369709]
[1642663368967,0.57748035,41969.0,41968.0,0.00369709]
[1642663369765,0.59248035,41969.0,41968.0,0.00369709]
[1642663370627,0.69292179,41969.0,41968.0,0.00369709]
[1642663370817,0.79292179,41969.0,41968.0,0.00369709]
[1642663371020,0.77792179,41969.0,41968.0,0.00369709]
[1642663371824,0.79292179,41969.0,41968.0,0.00369709]
[1642663372419,0.39666444,41969.0,41968.0,0.00369709]
[1642663373019,0.38166444,41969.0,41968.0,0.00369709]
[1642663373719,0.39466444,41969.0,41968.0,0.00369709]
[1642663373920,0.2809,41969.0,41968.0,0.00369709]
[1642663374965,0.2679,41969.0,41968.0,0.00369709]
[1642663375764,0.2809,41969.0,41968.0,0.00369709]
[1642663376768,0.3309,41969.0,41968.0,0.00369709]
[1642663376971,0.3179,41969.0,41968.0,0.00369709]
[1642663377912,0.3309,41969.0,41968.0,0.00369709]
[1642663379113,0.3179,41969.0,41968.0,0.00369709]
[1642663379714,0.2809,41969.0,41968.0,0.00369709]
[1642663381015,0.2679,41969.0,41968.0,0.00369709]
[1642663381867,0.37831559,41969.0,41968.0,0.00469709]
[1642663382271,0.33041559,41969.0,41968.0,0.00469709]
[1642663382472,0.231,41969.0,41968.0,0.00469709]
[1642663383072,0.22,41969.0,41968.0,0.40369709]
[1642663383268,0.22,41969.0,41968.0,0.78771209]
[1642663383467,0.22,41969.0,41968.0,0.38771209]
[1642663383866,0.231,41969.0,41968.0,0.39394305]
[1642663385072,0.22,41969.0,41968.0,0.38494305]
[1642663385519,0.22,41969.0,41968.0,0.38532527]
[1642663385717,0.231,41969.0,41968.0,0.39432527]
[1642663386319,0.231,41969.0,41968.0,0.01031027]
[1642663386923,0.33046666,41969.0,41968.0,0.00131027]
[1642663387120,0.31946666,41969.0,41968.0,0.00131027]
[1642663387526,0.52780445,41969.0,41968.0,0.00131027]
[1642663387722,0.6452713,41969.0,41968.0,0.00131027]
[1642663388721,0.6952713,41969.0,41968.0,0.00131027]
[1642663389070,0.6772713,41969.0,41968.0,0.00131027]
[1642663389470,0.36946685,41969.0,41968.0,0.00131027]
[1642663389870,0.38746685,41969.0,41968.0,0.00131027]
[1642663390368,0.43536685,41969.0,41968.0,0.00131027]
[1642663390967,0.41736685,41969.0,41968.0,0.00131027]
[1642663391370,0.41682587,41969.0,41968.0,0.00131027]
[1642663391770,0.38636685,41969.0,41968.0,0.00131027]
[1642663392374,0.2869,41969.0,41968.0,0.00131027]
[1642663392574,0.38422546,41969.0,41968.0,0.00131027]
[1642663393018,0.36522546,41969.0,41968.0,0.00131027]
[1642663393820,0.38122546,41969.0,41968.0,0.00131027]
[1642663395026,0.36522546,41969.0,41968.0,0.00131027]
[1642663395424,0.6707486,41969.0,41968.0,0.00131027]
[1642663395821,0.6877486,41969.0,41968.0,0.00131027]